{"text_format":"1","workbook":"xlsx","n_sheets":3,"sheets":["data","text","jobsheet"],"not_rendered":{"charts":0,"images":11,"macros":1,"external_links":0,"defined_names":3,"comments":0,"pivot_tables":0},"unopened":[],"bounds":{"document_bytes":16777216,"sheet_cells":100000,"rows_first":2000,"rows_last":500,"rows_between":2000,"halvings":0,"cell_chars":16384,"cell_head_chars":4096},"cells_cut":0,"cells_raw":0,"read":"whole","date_system":"1900"}

{"sheet":"data","index":0,"n_rows":125,"n_cols":6,"rows_kept":125,"cut":false,"hidden":true,"merged":[[67,3,67,5],[68,3,68,5]]}
["Participant",null,"Project or Contract"]
["Location",null,"County"]
["Farm Number",null,"Tract Number"]
[null,null,null,null,1]
[null,"Select ",null,null,2]
["x","CP 1",null,null,3]
[null,"CP 2",null,null,4]
[null,"CP 4D",null,null,5]
[null,"CP 8A",null,null,6]
[null,"CP 9",null,null,7]
[null,"CP 15A",null,null,8]
[null,"CP 21",null,null,9]
[null,"CP 22",null,null,10]
[null,"CP 23"]
[null,"CP 23A"]
[null,"CP 29"]
[null,"CP 30"]
[null,"CP 33"]
[null,"CP 42"]
[]
[null,"Over-seeding Planned"]
["Mowing Pattern (Check 1) "]
[null,"Entire Acreage"]
[null,"Alternating row"]
[null,"Alternating block",null,null,"10 yrs to 10 yrs, 11 months           "]
[null,"Tree / Shrub Area  ",null,null,"11 yrs to 11 yrs, 11 months           "]
[null,"in year 4 or 5, but before end of year 6           ",null,null,"12 yrs to 12 yrs, 11 months           "]
[null,"in year 4 or 5, but before end of year 6",null,null,"13 yrs to 13 yrs, 11 months           "]
[null,"in year 4 or 5, but before end of year 6",null,null,"14 yrs to 14 yrs, 11 months           "]
[null,"in year 4 or 5, but before end of year 9           ",null,null,"15 years                                             "]
[null,"in year 4 or 5, but before end of year 9           ",null,null,"Re-enrollment contract"]
[null,"in year 4 or 5, but before end of year 9           "]
[{"$f":"data!E53","v":0},"Not Applicable"]
[null,"before end of year 7"]
[null,"before end of year 8"]
[null,"before end of year 9"]
[null,"before end of year 10"]
[null,"before end of year 11"]
[null,"before end of year 12"]
[null,"at re-enrollment"]
[]
[null,{"$f":"indirect","v":{"$error":"#NAME?"}}]
[]
[]
[null,null,null,"Mowing Method","MowingImageLookup"]
[null,null,1,"Entire Acreage"]
[null,null,2,"Alternating row"]
[null,null,3,"Alternating block"]
[null,null,4,"Tree / Shrub Area  "]
[]
[]
[]
[]
[]
[]
[]
[null,null,"Select Purpose",null,null,"Select Mowing Height"]
["Select County",null,"Reduce soil erosion by increasing plant density.",null,null,"Mow cool-season grasses no lower than 6 inches."]
["Adams",null,"Improve plant diversity by adding more species. ",null,null,"Mow warm-season grasses no lower than 8 inches."]
["Allegheny",null,"Enhance habitat for wildlife and/or pollinators."]
["Armstrong"]
["Beaver"]
["Bedford"]
["Berks"]
["Blair"]
["Bradford"]
["Bucks",null,"Select a seeding method","SeedingMethodLookup"]
["Butler",null,"No-Till drill /specialized No-Till drill ","After completion of site preparations, plant the selected seed mixture with a no-till drill, taking care to place seed at the proper depth in the soil.  Seeding pattern should be perpendicular to the direction of surface water flow whenever possible.  If planting native grasses, note that only switchgrass can be planted with a conventional no-till drill; all other WSGs require a no-till drill equipped with “fluffy seed” boxes or seed agitators of some kind.  Such drills may be available for free to USDA participants, from local PA Game Commission offices or Pheasants Forever chapters.  "]
["Cambria",null,"Broadcasting  ","After completion of site preparations, plant the selected seed mixture by broadcasting seed.  Increase seeding rates by 50% more seed per acre when broadcasting, to compensate for lower germination rates resulting from less seed-to-soil contact.  For example, if a seed mixture’s no-till seeding rate is 6 lbs/ac, then the same seed mixture’s broadcast seeding rate would be 9 lbs/ac, to achieve similar germination rates.  Calibrate the broadcaster prior to spreading seed; use a free-flowing “carrier” material with the seed if needed.  For best results, broadcast half the total seed in one pattern (i.e. East – West), then broadcast the remaining seed perpendicular to the previous pattern (i.e. North – South).  Cultipack/firm seed bed after broadcasting; cultipacking pattern should be perpendicular to the direction of surface water flow whenever possible.     "]
["Cameron"]
["Carbon"]
["Centre"]
["Chester"]
["Clarion"]
["Clearfield"]
["Clinton"]
["Columbia"]
["Crawford"]
["Cumberland"]
["Dauphin"]
["Delaware"]
["Elk"]
["Erie"]
["Fayette"]
["Forest"]
["Franklin"]
["Fulton"]
["Greene"]
["Huntingdon"]
["Indiana"]
["Jefferson"]
["Juniata"]
["Lackawanna"]
["Lancaster"]
["Lawrence"]
["Lebanon"]
["Lehigh"]
["Luzerne"]
["Lycoming"]
["McKean"]
["Mercer"]
["Mifflin"]
["Monroe"]
["Montgomery"]
["Montour"]
["Northampton"]
["Northumberland"]
["Perry"]
["Philadelphia"]
["Pike"]
["Potter"]
["Schuylkill"]
["Snyder"]
["Somerset"]
["Sullivan"]
["Susquehanna"]
["Tioga"]
["Union"]
["Venango"]
["Warren"]
["Washington"]
["Wayne"]
["Westmoreland"]
["Wyoming"]
["York"]

{"sheet":"text","index":1,"n_rows":3,"n_cols":15,"rows_kept":3,"cut":false,"hidden":true,"merged":[[0,0,0,13]]}
["CP"]
[1,2,"4D","8A",9,"15A",21,22,23,"23A",29,30,33,42,"comment"]
[null,null,null,"x",null,"x","x",null,null,null,null,null,null,null,"May receive a one-time Prescribed Mowing of their entire acreage.  "]

{"sheet":"jobsheet","index":2,"n_rows":91,"n_cols":26,"rows_kept":91,"cut":false,"hidden":false,"merged":[[4,4,4,7],[73,3,74,3],[73,5,74,5],[73,6,74,6],[73,7,74,7],[73,4,74,4],[64,2,64,8],[65,2,65,13],[66,3,66,13],[6,6,6,9],[57,2,57,5],[57,9,57,11],[58,2,58,5],[58,9,58,11],[45,9,45,11],[46,9,46,11],[2,2,2,3],[3,2,3,3],[20,2,20,7],[19,2,19,6],[4,2,4,3],[10,2,10,3],[11,2,11,3],[12,2,12,3],[14,2,14,13],[15,2,15,13],[17,2,17,13],[18,2,18,13],[2,10,2,11],[4,10,4,11],[2,4,2,7],[3,4,3,7],[84,10,84,13],[86,2,86,5],[24,2,24,13],[31,9,31,11],[32,9,32,11],[33,9,33,11],[34,9,34,11],[35,9,35,11],[72,2,73,2],[36,9,36,11],[79,10,79,13],[80,10,80,13],[81,10,81,13],[82,10,82,13],[83,10,83,13],[73,10,74,13],[75,10,75,13],[76,10,76,13],[77,10,77,13],[78,10,78,13],[8,2,8,12],[20,8,20,13],[21,8,21,13],[25,2,25,13],[22,2,23,11],[59,2,59,5],[59,9,59,11],[47,2,47,5],[37,9,37,11],[38,9,38,11],[56,2,56,5],[56,9,56,11],[45,2,45,5],[46,2,46,5],[43,9,43,11],[44,9,44,11],[49,9,49,11],[51,9,51,11],[48,2,48,5],[49,2,49,5],[50,2,50,5],[51,2,51,5],[31,2,31,5],[32,2,32,5],[33,2,33,5],[34,2,34,5],[35,2,35,5],[68,2,68,13],[73,8,73,9],[87,2,88,13],[36,2,36,5],[37,2,37,5],[38,2,38,5],[43,2,43,5],[44,2,44,5],[55,9,55,11],[55,2,55,5],[54,2,54,5],[52,9,52,11],[53,9,53,11],[52,2,52,5],[53,2,53,5],[48,9,48,11]]}
[]
[]
[null,null,"Participant:",null,null,null,null,null,null,"FSA Contract:  ",null,null,null,null,null,null,null,null,null,null,null,null,null,"Enhance wildlife habitat by increasing forb diversity."]
[null,null,"Location:",null,null,null,null,null,null,"County:  "]
[null,null,"Farm Number:",null,null,null,null,null,null,"Tract Number:  "]
[]
[null,null,null,null,null,null,"Applicable CREP or CRP Activity:"]
[null,null,"Purpose:  "]
[null,null,"Inter-seeding / Over-seeding is a Mid-Contract Management (MCM) activity intended to reduce soil erosion, improve plant diversity, and/or enhance habitat for wildlife and pollinators on CRP/CREP acres.  "]
[null,null,"For this site, Inter-seeding / Over-seeding will:   (select all that apply)   "]
[null,null,"1."]
[null,null,"2."]
[null,null,"3."]
[null,null,"Description:"]
[null,null,"CRP and CREP fields provide valuable wildlife habitat, but over time they become less diverse and support fewer types of wildlife.  Periodic re-seeding helps CRP and CREP fields maintain healthy, persistent, desirable, and diverse plant cover.  Inter-seeding / Over-seeding can improve wildlife habitat by reintroducing forbs and other flowering plants and maintaining the early-successional plant species favored by many open-land wildlife species.  "]
[null,null,"While Inter-seeding / Over-seeding (ISOS) mixes can include some seeds from the original planting mix, ISOS will not reseed the original CRP or CREP seed mix.  ISOS should introduce new plant species that augment, complement, and add environmental benefits to the existing CRP/CREP practice.  For example, ISOS could add more diverse native wildflowers to a native grass planting, or add clovers to grassed waterways or other introduced cool-season grass practices.  In contrast, ISOS should not add introduced cool-season grasses into practices that were originally native grasses.    "]
[null,null,"Practice Guidance:  "]
[null,null,"NRCS will conduct a site visit prior to the implementation of this MCM, to determine the extent of ISOS needed, the seed mix to be planted, and any additional management activities needed to support or prepare for the ISOS.  NRCS guidance may vary, based on site-specific conditions."]
[null,null,"Complete the ISOS by the date specified in the Conservation Plan and in Table 1 below.  ISOS shall occur between August 1 and August 31, to encourage and protect the nesting and brood-rearing habitat that CRP and CREP grass fields provide from April 1 through July 31.  ISOS may occur outside of August on a case-by-case basis, but only if NRCS recommends it and the Farm Service Agency (FSA) pre-approves it.\nThe following guidance applies to cost-shared ISOS activities during the CRP/CREP contract:\n"]
[null,null,"Select the duration of the CRP/CREP Contract:",null,null,null,null,null,1]
[null,null,"The one required ISOS should occur in: ",null,null,null,null,null,{"$f":"IF(I20=1,data!B27,IF(jobsheet!I20=2,data!B28,IF(I20=3,data!B29,IF(I20=4,data!B30,IF(jobsheet!I20=5,data!B31,IF(jobsheet!I20=6,data!B32,IF(jobsheet!I20=7,data!B33)))))))","v":"in year 4 or 5, but before end of year 6           "}]
[null,null,null,null,null,null,null,"And if needed, additional ISOS* may occur:",{"$f":"IF(I20=1,data!B34,IF(jobsheet!I20=2,data!B35,IF(I20=3,data!B36,IF(I20=4,data!B37,IF(jobsheet!I20=5,data!B38,IF(jobsheet!I20=6,data!B39,IF(jobsheet!I20=7, data!B40)))))))","v":"before end of year 7"}]
[null,null,"*FSA may cost-share additional ISOS activities, if funds remain in the CRP/CREP contract; contact FSA for further information prior to conducting any additional ISOS.  Note that the guidance above applies to cost-shared ISOS; unfunded/non-cost-shared ISOS can occur in any year of the CRP/CREP contract, if recommended by NRCS and pre-approved by FSA."]
[]
[null,null,"Typically, entire CRP or CREP fields will be Inter-seeded / Over-seeded.  NRCS may recommend seeding less than an entire field, but only in cases when management efforts or site conditions warrant reduced ISOS.  "]
[null,null,"Implementation of ISOS may require some sort of site preparation, to increase seed-to-soil contact and improve germination of the ISOS seed mix.  Prescribed Burning, Prescribed Mowing, and Strip-Spraying Herbicide for Plant Diversity are possible actions that may precede ISOS.  Refer to the associated Job Sheets included with this Plan if any of these activities have been planned as site preparation for ISOS. ",null,null,null,null,null,null,null,null,null,null,null,null,null,null,null,null,null,null,null,null,null,null,"10 yrs to 10 yrs, 11 months           "]
[]
[]
[null,null,"Inter-seeding / Over-seeding Plant Mix",null,null,null,null,null,"lbs of ",null,"Gray areas for USDA"]
[null,null,null,null,null,null,"drilled",null,"seed",null,"use only"]
[null,null,"Options for introduced grass mixes",null,null,null,"lbs / ac*","Acres","needed",null,"Seed tag verified?    "]
[null,null,"                Timothy",null,null,null,null,null,{"$f":"ROUNDUP((G32*H32),0)","v":0}]
[null,null,"                Orchardgrass",null,null,null,null,null,0]
[null,null,"                Kentucky bluegrass",null,null,null,null,null,0]
[null,null,"                Smooth bromegrass",null,null,null,null,null,0]
[null,null,"                Birdsfoot trefoil ",null,null,null,null,null,0]
[null,null,"                Ladino clover     (1 lb/ac, max.) ",null,null,null,null,null,0]
[null,null,"                Red clover     (1 lb/ac, max.) ",null,null,null,null,null,0]
[null,null,"                Alsike clover     (1 lb/ac, max.) ",null,null,null,null,null,0]
[null,null,"                    *if broadcasting, add 50% more seed"]
[null,null,null,null,null,null,null,null,"lbs of "]
[null,null,null,null,null,null,"drilled",null,"PLS*"]
[null,null,"Options for native grass mixes**",null,null,null,"lbs/ac***","Acres","needed",null,"Seed tag verified?"]
[null,null,"                Switchgrass",null,null,null,null,null,{"$f":"ROUNDUP((G44*H44),0)","v":0}]
[null,null,"                Big Buestem",null,null,null,null,null,0]
[null,null,"                Indiangrass",null,null,null,null,null,0]
[null,null,"                Eastern gamagrass",null,null,null,null,null,0]
[null,null,"                Deertongue",null,null,null,null,null,0]
[null,null,"                Little Buestem",null,null,null,null,null,0]
[null,null,"                Broomsedge",null,null,null,null,null,0]
[null,null,"                Bottlebrush grass",null,null,null,null,null,0]
[null,null,"                Canada wildrye",null,null,null,null,null,0]
[null,null,"                Riverbank wildrye",null,null,null,null,null,0]
[null,null,"                Sideoats grama",null,null,null,null,null,0]
[null,null,"                Virginia wildrye",null,null,null,null,null,0]
[null,null,"                wildflower mix     (3 lb/s ac, max.)",null,null,null,3,null,0]
[null,null,"wildflower #1",null,null,null,null,null,{"$f":"ROUNDUP((G57*H57),0)","v":0}]
[null,null,"wildflower #2",null,null,null,null,null,0]
[null,null,"wildflower #3",null,null,null,null,null,0]
[null,null,"wildflower #4",null,null,null,null,null,0]
[null,null,"** amounts listed are for Pure Live Seed (PLS), not bulk seed              ***if broadcasting, add 50% more seed"]
[null,null,{"$f":"SUM(G57:G60)","v":0},{"$f":"IF((C62>3),H62,F63)","v":0},null,null,null,"too much wildflower seed"]
[]
[null,null,"Planting Method for Inter-seeding / Over-seeding acres"]
[null,null,"Select a seeding method"]
[null,null,{"$f":"IF(C65=data!C68,data!D68,IF(C65=data!C69,data!D69))","v":false}]
[null,null,"SITE-                   SPECIFIC NOTES","Enter text here"]
[]
[null,null,"By signing this document, the participant agrees to implement the Inter-seeding / Over-seeding following the technical recommendations provided by NRCS and approved by FSA.  The participant is aware that NRCS must conduct a site visit prior to the ISOS, to determine the need for the MCM and provide any updated technical recommendations.  Any changes to the ISOS activity must receive FSA approval prior to implementation."]
[]
[]
[null,null,"Table 1: Inter-seeding / Over-seeding Schedule"]
[null,null,"Select number of fields",null,null,null,null,"(items in grey are for USDA reporting only)"]
[null,null,null,"Field","Acres Planned","Year Planned","Acres Applied","Year Applied","Cert. by:",null,"Comments"]
[null,null,1,null,null,null,null,null,"NRCS / TSP","Participant"]
[null,null,null,1]
[{"$f":"IF($C$75<2,\"No\",\"Yes\")","v":"No"},null,null,2]
[{"$f":"IF($C$75<3,\"No\",\"Yes\")","v":"No"},null,null,3]
[{"$f":"IF($C$75<4,\"No\",\"Yes\")","v":"No"},null,null,4]
[{"$f":"IF($C$75<5,\"No\",\"Yes\")","v":"No"},null,null,5]
[{"$f":"IF($C$75<6,\"No\",\"Yes\")","v":"No"},null,null,6]
[{"$f":"IF($C$75<7,\"No\",\"Yes\")","v":"No"},null,null,7]
[{"$f":"IF($C$75<8,\"No\",\"Yes\")","v":"No"},null,null,8]
[{"$f":"IF($C$75<9,\"No\",\"Yes\")","v":"No"},null,null,9]
[{"$f":"IF($C$75<10,\"No\",\"Yes\")","v":"No"},null,null,10]
[]
[null,null,"Certification Statement:"]
[null,null,"I certify that implementation of this conservation practice is complete, meets criteria for the stated purpose(s), and meets the NRCS conservation practice standard and specifications."]
[]
[]
[null,null,"Certified By:"]